[Event "Titled Tuesday Blitz August 02 Late 2022"]
[White "Koellner, Ruben Gideon"]
[Black "Kravtsiv, Martyn"]
[WhiteFideId "12993093"]
[BlackFideId "14113147"]
[WhiteElo "2512"]
[BlackElo "2694"]
[Result "0-1"]
[Round "02"]
[TimeControl "180+1"]
[Date "2022.08.02"]
[WhiteClock "0:00:03"]
[BlackClock "0:01:15"]

1. d4 {[%clk 0:03:00]}  d5 {[%clk 0:02:59]} 2. Nf3 {[%clk 0:03:00]}  Nf6 {[%clk 0:02:58]} 3. Nbd2 {[%clk 0:03:00]}  e6 {[%clk 0:02:57]} 4. e3 {[%clk 0:03:00]}  c5 {[%clk 0:02:56]} 5. c3 {[%clk 0:02:59]}  Nc6 {[%clk 0:02:57]} 6. Bd3 {[%clk 0:02:59]}  Bd6 {[%clk 0:02:56]} 7. O-O {[%clk 0:02:59]}  O-O {[%clk 0:02:56]} 8. dxc5 {[%clk 0:03:00]}  Bxc5 {[%clk 0:02:55]} 9. b4 {[%clk 0:03:01]}  Bd6 {[%clk 0:02:46]} 10. Bb2 {[%clk 0:03:00]}  e5 {[%clk 0:02:40]} 11. e4 {[%clk 0:03:00]}  h6 {[%clk 0:02:35]} 12. Qc2 {[%clk 0:02:54]}  Bg4 {[%clk 0:02:23]} 13. h3 {[%clk 0:02:53]}  Bh5 {[%clk 0:02:21]} 14. exd5 {[%clk 0:02:45]}  Nxd5 {[%clk 0:02:17]} 15. g4 {[%clk 0:02:11]}  Bg6 {[%clk 0:02:09]} 16. Bxg6 {[%clk 0:01:47]}  fxg6 {[%clk 0:02:10]} 17. Qb3 {[%clk 0:01:46]}  Bc7 {[%clk 0:02:01]} 18. Rad1 {[%clk 0:01:32]}  Kh7 {[%clk 0:02:00]} 19. c4 {[%clk 0:00:36]}  Nf4 {[%clk 0:01:59]} 20. Ne4 {[%clk 0:00:34]}  Nd4 {[%clk 0:01:42]} 21. Nxd4 {[%clk 0:00:19]}  exd4 {[%clk 0:01:43]} 22. Rxd4 {[%clk 0:00:20]}  Ne2+ {[%clk 0:01:42]} 23. Kg2 {[%clk 0:00:16]}  Nxd4 {[%clk 0:01:43]} 24. Qc3 {[%clk 0:00:11]}  Ne6 {[%clk 0:01:16]} 25. Nc5 {[%clk 0:00:04]}  Nf4+ {[%clk 0:01:16]} 26. Kg1 {[%clk 0:00:03]}  Ne2+ {[%clk 0:01:15]} 0-1


[Site "https://www.chess.com"]

[Event "Titled Tuesday Blitz August 02 Late 2022"]
[White "Krastev, Alexander"]
[Black "Swiercz, Dariusz"]
[WhiteFideId "12989983"]
[BlackFideId "1126881"]
[WhiteElo "2579"]
[BlackElo "2627"]
[Result "1-0"]
[Round "02"]
[TimeControl "180+1"]
[Date "2022.08.02"]
[WhiteClock "0:00:21"]
[BlackClock "0:00:42"]

1. e4 {[%clk 0:02:59]}  Nc6 {[%clk 0:02:59]} 2. Nf3 {[%clk 0:02:58]}  d6 {[%clk 0:02:56]} 3. d4 {[%clk 0:02:49]}  Nf6 {[%clk 0:02:56]} 4. Nc3 {[%clk 0:02:37]}  Bg4 {[%clk 0:02:55]} 5. Be2 {[%clk 0:02:37]}  e6 {[%clk 0:02:52]} 6. h3 {[%clk 0:02:35]}  Bh5 {[%clk 0:02:51]} 7. Be3 {[%clk 0:02:32]}  Be7 {[%clk 0:02:47]} 8. d5 {[%clk 0:02:16]}  exd5 {[%clk 0:02:46]} 9. exd5 {[%clk 0:02:17]}  Bxf3 {[%clk 0:02:46]} 10. Bxf3 {[%clk 0:02:16]}  Ne5 {[%clk 0:02:47]} 11. Be2 {[%clk 0:02:16]}  O-O {[%clk 0:02:47]} 12. O-O {[%clk 0:02:15]}  Re8 {[%clk 0:02:47]} 13. Re1 {[%clk 0:02:11]}  Bf8 {[%clk 0:02:45]} 14. Bf1 {[%clk 0:02:10]}  c6 {[%clk 0:02:40]} 15. Qd2 {[%clk 0:02:05]}  a6 {[%clk 0:01:44]} 16. a4 {[%clk 0:02:01]}  Rc8 {[%clk 0:01:39]} 17. dxc6 {[%clk 0:01:50]}  Rxc6 {[%clk 0:01:29]} 18. Rad1 {[%clk 0:01:49]}  h6 {[%clk 0:01:27]} 19. Bf4 {[%clk 0:01:45]}  Qc8 {[%clk 0:01:25]} 20. Qd4 {[%clk 0:01:22]}  Qf5 {[%clk 0:01:16]} 21. Qd2 {[%clk 0:00:48]}  d5 {[%clk 0:01:05]} 22. Bxe5 {[%clk 0:00:28]}  Rxe5 {[%clk 0:01:05]} 23. Rxe5 {[%clk 0:00:27]}  Qxe5 {[%clk 0:01:05]} 24. Bd3 {[%clk 0:00:26]}  Bb4 {[%clk 0:01:00]} 25. Re1 {[%clk 0:00:23]}  Bxc3 {[%clk 0:00:57]} 26. bxc3 {[%clk 0:00:23]}  Qxc3 {[%clk 0:00:53]} 27. Qe3 {[%clk 0:00:20]}  Re6 {[%clk 0:00:52]} 28. Bh7+ {[%clk 0:00:20]}  Kxh7 {[%clk 0:00:45]} 29. Qxc3 {[%clk 0:00:21]}  Rc6 {[%clk 0:00:42]} 30. Qd3+ {[%clk 0:00:21]}  g6 {[%clk 0:00:43]} 31. Re7 {[%clk 0:00:21]}  Kg7 {[%clk 0:00:43]} 32. Rxb7 {[%clk 0:00:22]}  Re6 {[%clk 0:00:41]} 33. Qd4 {[%clk 0:00:21]}  h5 {[%clk 0:00:42]} 34. Rb6 {[%clk 0:00:21]} 1-0


[Site "https://www.chess.com"]

[Event "Titled Tuesday Blitz August 02 Late 2022"]
[White "Machidon, Cristi"]
[Black "Hakobyan, Aram"]
[WhiteFideId "13904590"]
[BlackFideId "13306677"]
[WhiteElo "2312"]
[BlackElo "2557"]
[Result "1-0"]
[Round "02"]
[TimeControl "180+1"]
[Date "2022.08.02"]
[WhiteClock "0:00:16"]
[BlackClock "0:00:11"]

1. d4 {[%clk 0:02:55]}  Nf6 {[%clk 0:02:59]} 2. c4 {[%clk 0:02:55]}  e6 {[%clk 0:02:59]} 3. Nc3 {[%clk 0:02:55]}  Bb4 {[%clk 0:02:59]} 4. e3 {[%clk 0:02:54]}  Bxc3+ {[%clk 0:02:59]} 5. bxc3 {[%clk 0:02:54]}  c5 {[%clk 0:03:00]} 6. Bd3 {[%clk 0:02:53]}  d6 {[%clk 0:02:59]} 7. f4 {[%clk 0:02:37]}  Nc6 {[%clk 0:02:59]} 8. Nf3 {[%clk 0:02:37]}  O-O {[%clk 0:02:59]} 9. O-O {[%clk 0:02:35]}  e5 {[%clk 0:02:54]} 10. Bc2 {[%clk 0:01:59]}  e4 {[%clk 0:02:47]} 11. Nd2 {[%clk 0:01:46]}  Re8 {[%clk 0:02:44]} 12. h3 {[%clk 0:01:44]}  h5 {[%clk 0:02:37]} 13. Qe1 {[%clk 0:01:37]}  Bf5 {[%clk 0:02:19]} 14. Rb1 {[%clk 0:01:34]}  Rb8 {[%clk 0:02:13]} 15. Kh2 {[%clk 0:01:23]}  h4 {[%clk 0:02:08]} 16. Nb3 {[%clk 0:01:17]}  Nd7 {[%clk 0:01:46]} 17. g4 {[%clk 0:01:11]}  hxg3+ {[%clk 0:01:45]} 18. Qxg3 {[%clk 0:01:11]}  Re6 {[%clk 0:01:44]} 19. Qg5 {[%clk 0:01:00]}  Ne7 {[%clk 0:01:35]} 20. Rg1 {[%clk 0:00:40]}  Rg6 {[%clk 0:01:33]} 21. Qh4 {[%clk 0:00:40]}  Rxg1 {[%clk 0:01:32]} 22. Kxg1 {[%clk 0:00:41]}  Ng6 {[%clk 0:00:58]} 23. Qxd8+ {[%clk 0:00:38]}  Rxd8 {[%clk 0:00:59]} 24. Na5 {[%clk 0:00:31]}  b6 {[%clk 0:00:56]} 25. Nb7 {[%clk 0:00:31]}  Rb8 {[%clk 0:00:50]} 26. Nxd6 {[%clk 0:00:31]}  Bxh3 {[%clk 0:00:50]} 27. Bxe4 {[%clk 0:00:30]}  Nf6 {[%clk 0:00:46]} 28. Bxg6 {[%clk 0:00:29]}  fxg6 {[%clk 0:00:47]} 29. dxc5 {[%clk 0:00:29]}  Rd8 {[%clk 0:00:45]} 30. Ba3 {[%clk 0:00:29]}  Bf5 {[%clk 0:00:35]} 31. Rd1 {[%clk 0:00:26]}  Ne4 {[%clk 0:00:35]} 32. Rd4 {[%clk 0:00:22]}  Nxc3 {[%clk 0:00:35]} 33. Nxf5 {[%clk 0:00:17]}  Ne2+ {[%clk 0:00:32]} 34. Kf2 {[%clk 0:00:18]}  Nxd4 {[%clk 0:00:33]} 35. Nxd4 {[%clk 0:00:18]}  bxc5 {[%clk 0:00:33]} 36. Bxc5 {[%clk 0:00:19]}  Rc8 {[%clk 0:00:33]} 37. Nb3 {[%clk 0:00:18]}  a5 {[%clk 0:00:33]} 38. Bd4 {[%clk 0:00:18]}  Rxc4 {[%clk 0:00:31]} 39. a3 {[%clk 0:00:17]}  a4 {[%clk 0:00:30]} 40. Nd2 {[%clk 0:00:16]}  Rc2 {[%clk 0:00:30]} 41. Ke2 {[%clk 0:00:17]}  Kf7 {[%clk 0:00:30]} 42. Kd3 {[%clk 0:00:17]}  Ra2 {[%clk 0:00:29]} 43. Bc5 {[%clk 0:00:13]}  Kf6 {[%clk 0:00:27]} 44. Nf3 {[%clk 0:00:13]}  Rf2 {[%clk 0:00:26]} 45. Bd4+ {[%clk 0:00:12]}  Ke7 {[%clk 0:00:18]} 46. Nh4 {[%clk 0:00:12]}  Kf7 {[%clk 0:00:16]} 47. Ke4 {[%clk 0:00:12]}  Ra2 {[%clk 0:00:16]} 48. Bc5 {[%clk 0:00:12]}  Rc2 {[%clk 0:00:14]} 49. Bb4 {[%clk 0:00:12]}  g5 {[%clk 0:00:13]} 50. fxg5 {[%clk 0:00:12]}  Rc4+ {[%clk 0:00:14]} 51. Kf5 {[%clk 0:00:11]}  Rxh4 {[%clk 0:00:15]} 52. g6+ {[%clk 0:00:11]}  Kg8 {[%clk 0:00:13]} 53. e4 {[%clk 0:00:11]}  Rh1 {[%clk 0:00:12]} 54. e5 {[%clk 0:00:11]}  Rb1 {[%clk 0:00:07]} 55. Bd6 {[%clk 0:00:09]}  Rb6 {[%clk 0:00:03]} 56. Ke6 {[%clk 0:00:09]}  Ra6 {[%clk 0:00:03]} 57. Kd5 {[%clk 0:00:09]}  Ra5+ {[%clk 0:00:03]} 58. Kd4 {[%clk 0:00:09]}  Ra6 {[%clk 0:00:02]} 59. Kc5 {[%clk 0:00:09]}  Ra5+ {[%clk 0:00:01]} 60. Kb6 {[%clk 0:00:09]}  Ra8 {[%clk 0:00:02]} 61. e6 {[%clk 0:00:10]}  Rd8 {[%clk 0:00:03]} 62. Kc7 {[%clk 0:00:09]}  Re8 {[%clk 0:00:03]} 63. Kd7 {[%clk 0:00:08]}  Ra8 {[%clk 0:00:03]} 64. e7 {[%clk 0:00:09]}  Ra7+ {[%clk 0:00:03]} 65. Bc7 {[%clk 0:00:09]}  Ra8 {[%clk 0:00:03]} 66. e8=Q+ {[%clk 0:00:09]}  Rxe8 {[%clk 0:00:03]} 67. Kxe8 {[%clk 0:00:10]}  Kh8 {[%clk 0:00:04]} 68. Bd6 {[%clk 0:00:10]}  Kg8 {[%clk 0:00:05]} 69. Kd7 {[%clk 0:00:11]}  Kh8 {[%clk 0:00:06]} 70. Kc6 {[%clk 0:00:12]}  Kg8 {[%clk 0:00:06]} 71. Kb5 {[%clk 0:00:13]}  Kh8 {[%clk 0:00:07]} 72. Kxa4 {[%clk 0:00:14]}  Kg8 {[%clk 0:00:08]} 73. Kb5 {[%clk 0:00:14]}  Kh8 {[%clk 0:00:09]} 74. a4 {[%clk 0:00:15]}  Kg8 {[%clk 0:00:10]} 75. a5 {[%clk 0:00:16]}  Kh8 {[%clk 0:00:11]} 76. a6 {[%clk 0:00:16]} 1-0


[Site "https://www.chess.com"]

[Event "Titled Tuesday Blitz August 02 Late 2022"]
[White "Maltsevskaya, Aleksandra"]
[Black "Fedoseev, Vladimir"]
[WhiteFideId "24174041"]
[BlackFideId "24130737"]
[WhiteElo "2243"]
[BlackElo "2726"]
[Result "0-1"]
[Round "02"]
[TimeControl "180+1"]
[Date "2022.08.02"]
[WhiteClock "0:00:03"]
[BlackClock "0:00:53"]

1. e4 {[%clk 0:03:00]}  c5 {[%clk 0:02:59]} 2. Nf3 {[%clk 0:03:00]}  d6 {[%clk 0:02:59]} 3. d4 {[%clk 0:02:59]}  cxd4 {[%clk 0:02:59]} 4. Nxd4 {[%clk 0:03:00]}  Nf6 {[%clk 0:02:58]} 5. f3 {[%clk 0:03:00]}  e5 {[%clk 0:02:55]} 6. Nb3 {[%clk 0:03:00]}  Be6 {[%clk 0:02:55]} 7. c4 {[%clk 0:02:58]}  a5 {[%clk 0:02:56]} 8. Nc3 {[%clk 0:02:52]}  a4 {[%clk 0:02:56]} 9. Nd2 {[%clk 0:02:53]}  Qa5 {[%clk 0:02:55]} 10. Ndb1 {[%clk 0:02:48]}  Be7 {[%clk 0:02:52]} 11. Be2 {[%clk 0:02:42]}  O-O {[%clk 0:02:49]} 12. O-O {[%clk 0:02:41]}  Rc8 {[%clk 0:02:48]} 13. Na3 {[%clk 0:02:39]}  Nc6 {[%clk 0:02:40]} 14. Be3 {[%clk 0:02:34]}  Bd8 {[%clk 0:02:27]} 15. Qxd6 {[%clk 0:01:59]}  Bb6 {[%clk 0:02:09]} 16. Qd2 {[%clk 0:01:34]}  Rd8 {[%clk 0:02:08]} 17. Qc1 {[%clk 0:01:34]}  Nd4 {[%clk 0:02:03]} 18. Kh1 {[%clk 0:01:24]}  Rac8 {[%clk 0:01:58]} 19. Bg1 {[%clk 0:01:05]}  Bc5 {[%clk 0:01:35]} 20. Bd3 {[%clk 0:00:23]}  Bxa3 {[%clk 0:01:24]} 21. bxa3 {[%clk 0:00:23]}  Bxc4 {[%clk 0:01:16]} 22. Rd1 {[%clk 0:00:03]}  Be6 {[%clk 0:01:06]} 23. Qg5 {[%clk 0:00:03]}  Rxc3 {[%clk 0:01:04]} 24. Bf1 {[%clk 0:00:03]}  h6 {[%clk 0:01:01]} 25. Qg3 {[%clk 0:00:02]}  Nxe4 {[%clk 0:01:00]} 26. Qh4 {[%clk 0:00:01]}  Nf6 {[%clk 0:00:59]} 27. Bxd4 {[%clk 0:00:01]}  exd4 {[%clk 0:00:58]} 28. Rxd4 {[%clk 0:00:02]}  Rxd4 {[%clk 0:00:57]} 29. Qxd4 {[%clk 0:00:03]}  Nd5 {[%clk 0:00:53]} 0-1


[Site "https://www.chess.com"]

[Event "Titled Tuesday Blitz August 02 Late 2022"]
[White "Manukyan, Artyom"]
[Black "Rasulov, Vugar"]
[WhiteFideId "13305786"]
[BlackFideId "13402390"]
[WhiteElo "2034"]
[BlackElo "2523"]
[Result "0-1"]
[Round "02"]
[TimeControl "180+1"]
[Date "2022.08.02"]
[WhiteClock "0:00:14"]
[BlackClock "0:01:23"]

1. e4 {[%clk 0:03:00]}  c5 {[%clk 0:03:00]} 2. Nc3 {[%clk 0:03:00]}  e6 {[%clk 0:03:00]} 3. Nge2 {[%clk 0:02:57]}  a6 {[%clk 0:02:59]} 4. g3 {[%clk 0:02:56]}  d5 {[%clk 0:02:58]} 5. exd5 {[%clk 0:02:54]}  exd5 {[%clk 0:02:59]} 6. d4 {[%clk 0:02:54]}  Nf6 {[%clk 0:02:57]} 7. Bg2 {[%clk 0:02:54]}  cxd4 {[%clk 0:02:51]} 8. Nxd4 {[%clk 0:02:55]}  Bg4 {[%clk 0:02:51]} 9. Qd3 {[%clk 0:02:54]}  Nc6 {[%clk 0:02:47]} 10. O-O {[%clk 0:02:51]}  Be7 {[%clk 0:02:47]} 11. h3 {[%clk 0:02:50]}  Bc8 {[%clk 0:02:36]} 12. Nf5 {[%clk 0:02:11]}  Bxf5 {[%clk 0:02:30]} 13. Qxf5 {[%clk 0:02:11]}  d4 {[%clk 0:02:31]} 14. Nd5 {[%clk 0:02:07]}  Nxd5 {[%clk 0:02:24]} 15. Qxd5 {[%clk 0:02:01]}  O-O {[%clk 0:02:20]} 16. Qxd8 {[%clk 0:01:57]}  Rfxd8 {[%clk 0:02:21]} 17. a3 {[%clk 0:01:58]}  Rac8 {[%clk 0:02:20]} 18. Bd2 {[%clk 0:01:46]}  Ne5 {[%clk 0:02:15]} 19. Bxb7 {[%clk 0:01:28]}  Rxc2 {[%clk 0:02:14]} 20. Bf4 {[%clk 0:01:29]}  Ng6 {[%clk 0:02:08]} 21. Bxa6 {[%clk 0:01:28]}  Nxf4 {[%clk 0:02:07]} 22. gxf4 {[%clk 0:01:29]}  Rxb2 {[%clk 0:02:07]} 23. Rfd1 {[%clk 0:01:25]}  g6 {[%clk 0:02:00]} 24. Kf1 {[%clk 0:01:15]}  Kg7 {[%clk 0:01:53]} 25. a4 {[%clk 0:01:14]}  Bh4 {[%clk 0:01:47]} 26. Be2 {[%clk 0:00:50]}  Re8 {[%clk 0:01:45]} 27. Re1 {[%clk 0:00:50]}  Rd2 {[%clk 0:01:36]} 28. Ra3 {[%clk 0:00:40]}  d3 {[%clk 0:01:28]} 29. Rxd3 {[%clk 0:00:22]}  Rexe2 {[%clk 0:01:27]} 30. Rxe2 {[%clk 0:00:13]}  Rxd3 {[%clk 0:01:27]} 31. Ra2 {[%clk 0:00:14]}  Rd6 {[%clk 0:01:22]} 32. a5 {[%clk 0:00:15]}  Ra6 {[%clk 0:01:23]} 33. Kg2 {[%clk 0:00:13]}  Bd8 {[%clk 0:01:23]} 34. Kf3 {[%clk 0:00:14]}  Rxa5 {[%clk 0:01:23]} 35. Rd2 {[%clk 0:00:15]}  Ra3+ {[%clk 0:01:23]} 36. Ke4 {[%clk 0:00:14]}  Bc7 {[%clk 0:01:23]} 37. h4 {[%clk 0:00:14]}  Ra4+ {[%clk 0:01:23]} 0-1


[Site "https://www.chess.com"]

[Event "Titled Tuesday Blitz August 02 Late 2022"]
[White "Martinez Alcantara, Jose Eduardo"]
[Black "Bayo Milagro, Alvaro"]
[WhiteFideId "3805662"]
[BlackFideId "22275240"]
[WhiteElo "2703"]
[BlackElo "2270"]
[Result "1-0"]
[Round "02"]
[TimeControl "180+1"]
[Date "2022.08.02"]
[WhiteClock "0:00:29"]
[BlackClock "0:00:06"]

1. e4 {[%clk 0:03:00]}  e5 {[%clk 0:02:57]} 2. Nf3 {[%clk 0:03:01]}  Nc6 {[%clk 0:02:57]} 3. Bb5 {[%clk 0:03:01]}  a6 {[%clk 0:02:57]} 4. Ba4 {[%clk 0:03:02]}  Nf6 {[%clk 0:02:57]} 5. d3 {[%clk 0:03:03]}  d6 {[%clk 0:02:57]} 6. c3 {[%clk 0:03:03]}  g6 {[%clk 0:02:57]} 7. O-O {[%clk 0:03:03]}  Bg7 {[%clk 0:02:58]} 8. h3 {[%clk 0:03:04]}  O-O {[%clk 0:02:58]} 9. Re1 {[%clk 0:03:04]}  Bd7 {[%clk 0:02:58]} 10. Be3 {[%clk 0:03:04]}  b5 {[%clk 0:02:57]} 11. Bc2 {[%clk 0:03:03]}  h6 {[%clk 0:02:56]} 12. Nbd2 {[%clk 0:03:04]}  Kh7 {[%clk 0:02:55]} 13. d4 {[%clk 0:03:04]}  Nh5 {[%clk 0:02:53]} 14. dxe5 {[%clk 0:02:58]}  Nxe5 {[%clk 0:02:41]} 15. Nxe5 {[%clk 0:02:57]}  dxe5 {[%clk 0:02:41]} 16. Nb3 {[%clk 0:02:52]}  Nf4 {[%clk 0:02:37]} 17. Nc5 {[%clk 0:02:37]}  Bc6 {[%clk 0:02:32]} 18. Kh2 {[%clk 0:02:22]}  Qe7 {[%clk 0:02:27]} 19. b4 {[%clk 0:02:13]}  a5 {[%clk 0:02:06]} 20. g3 {[%clk 0:02:04]}  Ne6 {[%clk 0:01:59]} 21. a3 {[%clk 0:02:03]}  axb4 {[%clk 0:01:56]} 22. axb4 {[%clk 0:02:04]}  Rxa1 {[%clk 0:01:55]} 23. Qxa1 {[%clk 0:02:05]}  Ra8 {[%clk 0:01:52]} 24. Qd1 {[%clk 0:02:04]}  Rd8 {[%clk 0:01:43]} 25. Qe2 {[%clk 0:02:01]}  Nxc5 {[%clk 0:01:42]} 26. Bxc5 {[%clk 0:02:00]}  Qe6 {[%clk 0:01:39]} 27. Bd3 {[%clk 0:01:53]}  Bd7 {[%clk 0:01:31]} 28. h4 {[%clk 0:01:52]}  c6 {[%clk 0:01:10]} 29. Kg1 {[%clk 0:01:52]}  Bc8 {[%clk 0:01:10]} 30. c4 {[%clk 0:01:47]}  bxc4 {[%clk 0:00:56]} 31. Bxc4 {[%clk 0:01:46]}  Qd7 {[%clk 0:00:47]} 32. Bb3 {[%clk 0:01:37]}  Kg8 {[%clk 0:00:44]} 33. Rd1 {[%clk 0:01:37]}  Qc7 {[%clk 0:00:43]} 34. Rd3 {[%clk 0:01:36]}  Rxd3 {[%clk 0:00:41]} 35. Qxd3 {[%clk 0:01:37]}  Qd7 {[%clk 0:00:41]} 36. Qf3 {[%clk 0:01:33]}  Qe8 {[%clk 0:00:36]} 37. Qd3 {[%clk 0:01:22]}  Be6 {[%clk 0:00:35]} 38. Ba4 {[%clk 0:01:18]}  Qa8 {[%clk 0:00:35]} 39. Qd1 {[%clk 0:01:15]}  Bf8 {[%clk 0:00:33]} 40. Bxf8 {[%clk 0:01:08]}  Kxf8 {[%clk 0:00:33]} 41. Qd6+ {[%clk 0:01:07]}  Kg8 {[%clk 0:00:33]} 42. Qxc6 {[%clk 0:01:04]}  Qa7 {[%clk 0:00:26]} 43. Qc2 {[%clk 0:00:56]}  Qd4 {[%clk 0:00:23]} 44. b5 {[%clk 0:00:48]}  Bc4 {[%clk 0:00:19]} 45. b6 {[%clk 0:00:44]}  Bd3 {[%clk 0:00:16]} 46. Qd1 {[%clk 0:00:36]}  Qxe4 {[%clk 0:00:11]} 47. b7 {[%clk 0:00:28]}  Qxb7 {[%clk 0:00:12]} 48. Qxd3 {[%clk 0:00:28]}  Kg7 {[%clk 0:00:11]} 49. Bc2 {[%clk 0:00:27]}  Qc7 {[%clk 0:00:11]} 50. h5 {[%clk 0:00:27]}  gxh5 {[%clk 0:00:11]} 51. Qh7+ {[%clk 0:00:26]}  Kf8 {[%clk 0:00:11]} 52. Qxh6+ {[%clk 0:00:27]}  Ke7 {[%clk 0:00:12]} 53. Qg5+ {[%clk 0:00:27]}  Kf8 {[%clk 0:00:11]} 54. Bf5 {[%clk 0:00:26]}  Qd6 {[%clk 0:00:10]} 55. Qxh5 {[%clk 0:00:27]}  Ke7 {[%clk 0:00:10]} 56. Be4 {[%clk 0:00:25]}  Qd4 {[%clk 0:00:10]} 57. Qf3 {[%clk 0:00:26]}  f6 {[%clk 0:00:10]} 58. Kg2 {[%clk 0:00:27]}  Qd2 {[%clk 0:00:10]} 59. Qf5 {[%clk 0:00:27]}  Qd4 {[%clk 0:00:10]} 60. Qh7+ {[%clk 0:00:28]}  Ke6 {[%clk 0:00:11]} 61. Bf5+ {[%clk 0:00:28]}  Kd6 {[%clk 0:00:11]} 62. Qd7+ {[%clk 0:00:29]}  Kc5 {[%clk 0:00:11]} 63. Qxd4+ {[%clk 0:00:29]}  exd4 {[%clk 0:00:06]} 64. Kf3 {[%clk 0:00:30]}  Kd5 {[%clk 0:00:06]} 65. Bd3 {[%clk 0:00:29]} 1-0


[Site "https://www.chess.com"]

[Event "Titled Tuesday Blitz August 02 Late 2022"]
[White "Oparin, Grigoriy"]
[Black "Janaszak, Dawid"]
[WhiteFideId "24125890"]
[BlackFideId "1119206"]
[WhiteElo "2639"]
[BlackElo "2199"]
[Result "1-0"]
[Round "02"]
[TimeControl "180+1"]
[Date "2022.08.02"]
[WhiteClock "0:00:12"]
[BlackClock "0:00:01"]

1. e4 {[%clk 0:03:00]}  e6 {[%clk 0:02:59]} 2. d4 {[%clk 0:03:00]}  d5 {[%clk 0:02:59]} 3. Nc3 {[%clk 0:03:01]}  Nf6 {[%clk 0:02:56]} 4. e5 {[%clk 0:02:59]}  Ng8 {[%clk 0:02:56]} 5. f4 {[%clk 0:03:00]}  c5 {[%clk 0:02:56]} 6. Nf3 {[%clk 0:03:00]}  Nc6 {[%clk 0:02:56]} 7. Be3 {[%clk 0:03:00]}  cxd4 {[%clk 0:02:41]} 8. Nxd4 {[%clk 0:03:00]}  Nh6 {[%clk 0:02:38]} 9. Bd3 {[%clk 0:02:53]}  Qa5 {[%clk 0:02:15]} 10. O-O {[%clk 0:02:50]}  Bc5 {[%clk 0:02:11]} 11. Nce2 {[%clk 0:02:50]}  Ng4 {[%clk 0:02:07]} 12. Qc1 {[%clk 0:02:39]}  Qb6 {[%clk 0:02:02]} 13. c3 {[%clk 0:02:38]}  Bd7 {[%clk 0:01:56]} 14. b4 {[%clk 0:02:31]}  Bxd4 {[%clk 0:01:55]} 15. Bxd4 {[%clk 0:02:27]}  Nxd4 {[%clk 0:01:53]} 16. Nxd4 {[%clk 0:02:28]}  g6 {[%clk 0:01:46]} 17. Qd2 {[%clk 0:02:19]}  h5 {[%clk 0:01:44]} 18. h3 {[%clk 0:02:06]}  Nh6 {[%clk 0:01:43]} 19. g3 {[%clk 0:02:06]}  Nf5 {[%clk 0:01:41]} 20. Bxf5 {[%clk 0:02:06]}  gxf5 {[%clk 0:01:42]} 21. Kh2 {[%clk 0:02:02]}  Rc8 {[%clk 0:01:34]} 22. Rf3 {[%clk 0:02:00]}  Rc4 {[%clk 0:01:33]} 23. a3 {[%clk 0:01:59]}  Kd8 {[%clk 0:01:22]} 24. Re3 {[%clk 0:01:56]}  Kc8 {[%clk 0:01:19]} 25. Qe2 {[%clk 0:01:55]}  Kb8 {[%clk 0:01:18]} 26. Rf1 {[%clk 0:01:50]}  Ba4 {[%clk 0:01:17]} 27. Kg2 {[%clk 0:01:28]}  a6 {[%clk 0:01:16]} 28. Rff3 {[%clk 0:01:26]}  Qc7 {[%clk 0:01:14]} 29. Qd2 {[%clk 0:01:20]}  Ka8 {[%clk 0:01:11]} 30. Rd3 {[%clk 0:01:16]}  Qb6 {[%clk 0:01:09]} 31. Qf2 {[%clk 0:01:12]}  Qc7 {[%clk 0:01:09]} 32. Kh2 {[%clk 0:01:08]}  Qd8 {[%clk 0:01:04]} 33. Rfe3 {[%clk 0:01:08]}  Qc8 {[%clk 0:01:04]} 34. Nf3 {[%clk 0:01:08]}  Bb5 {[%clk 0:00:57]} 35. Qd2 {[%clk 0:01:04]}  Rc7 {[%clk 0:00:54]} 36. Rd4 {[%clk 0:01:04]}  Qd8 {[%clk 0:00:43]} 37. Ng5 {[%clk 0:01:04]}  Qe7 {[%clk 0:00:43]} 38. Qd1 {[%clk 0:00:59]}  Be8 {[%clk 0:00:36]} 39. a4 {[%clk 0:00:44]}  Qd7 {[%clk 0:00:36]} 40. a5 {[%clk 0:00:44]}  Qe7 {[%clk 0:00:35]} 41. Qe2 {[%clk 0:00:38]}  Bb5 {[%clk 0:00:35]} 42. Qf3 {[%clk 0:00:38]}  Qe8 {[%clk 0:00:25]} 43. Qd1 {[%clk 0:00:27]}  Kb8 {[%clk 0:00:25]} 44. Rd2 {[%clk 0:00:28]}  Bc4 {[%clk 0:00:25]} 45. Nf3 {[%clk 0:00:28]}  Bb5 {[%clk 0:00:23]} 46. Nd4 {[%clk 0:00:29]}  h4 {[%clk 0:00:23]} 47. g4 {[%clk 0:00:28]}  fxg4 {[%clk 0:00:21]} 48. hxg4 {[%clk 0:00:29]}  Bc4 {[%clk 0:00:20]} 49. Rh3 {[%clk 0:00:29]}  Qe7 {[%clk 0:00:15]} 50. Qe1 {[%clk 0:00:29]}  Rcc8 {[%clk 0:00:12]} 51. g5 {[%clk 0:00:30]}  Qd7 {[%clk 0:00:07]} 52. Rg2 {[%clk 0:00:30]}  Qa4 {[%clk 0:00:06]} 53. g6 {[%clk 0:00:27]}  fxg6 {[%clk 0:00:06]} 54. Nxe6 {[%clk 0:00:25]}  d4 {[%clk 0:00:05]} 55. Nxd4 {[%clk 0:00:25]}  Bd5 {[%clk 0:00:06]} 56. Rxg6 {[%clk 0:00:22]}  Rhf8 {[%clk 0:00:04]} 57. f5 {[%clk 0:00:21]}  Qa2+ {[%clk 0:00:03]} 58. Qe2 {[%clk 0:00:13]}  Qa1 {[%clk 0:00:03]} 59. Rg1 {[%clk 0:00:12]}  Qa4 {[%clk 0:00:02]} 60. e6 {[%clk 0:00:12]}  Rfe8 {[%clk 0:00:01]} 61. Qe5+ {[%clk 0:00:11]}  Ka8 {[%clk 0:00:01]} 62. Qxd5 {[%clk 0:00:12]}  Qa2+ {[%clk 0:00:01]} 63. Qxa2 {[%clk 0:00:12]} 1-0


[Site "https://www.chess.com"]